bitfinex/quotes_BTCUSD_20250624
["timestamp","ask_amount","ask_price","bid_price","bid_amount"]
[1750779476807,0.10993673,105570.0,105560.0,0.52589942]
[1750779477549,0.10993673,105570.0,105560.0,0.36713942]
[1750779477745,0.30885677,105570.0,105560.0,0.52581951]
[1750779478158,0.11393673,105570.0,105560.0,0.53729216]
[1750779478611,0.09499242,105570.0,105560.0,0.53729216]
[1750779478801,0.09499242,105570.0,105560.0,0.86623353]
[1750779479253,0.10446444,105570.0,105560.0,0.66467353]
[1750779479461,0.09499242,105570.0,105560.0,0.86623353]
[1750779479662,0.09499233,105570.0,105560.0,1.06623353]
[1750779479898,0.10446426,105570.0,105560.0,1.06623353]
[1750779480289,0.054049,105570.0,105560.0,1.06619353]
[1750779480509,0.004,105570.0,105560.0,1.06007353]
[1750779480716,0.004,105570.0,105560.0,1.26167353]
[1750779480913,0.004,105570.0,105560.0,1.23847353]
[1750779481830,0.004,105570.0,105560.0,1.26187353]
[1750779482193,0.004,105570.0,105560.0,1.11187353]
[1750779483024,0.004,105570.0,105560.0,1.11175353]
[1750779483242,0.004,105570.0,105560.0,1.08835353]
[1750779483450,0.004,105570.0,105560.0,0.68573216]
[1750779483805,0.05677167,105570.0,105560.0,1.06615353]
[1750779483980,0.06624351,105570.0,105560.0,1.06647353]
[1750779484432,0.27463557,105570.0,105560.0,1.04752832]
[1750779484643,0.27463557,105570.0,105560.0,0.72805978]
[1750779484644,0.08518782,105570.0,105560.0,0.72805978]
[1750779484862,0.27463557,105570.0,105560.0,1.06647389]
[1750779485075,0.08518782,105570.0,105560.0,1.06647389]
[1750779485490,0.08518782,105570.0,105560.0,1.06647326]
[1750779485697,0.28410795,105570.0,105560.0,0.53573189]
[1750779485938,0.58463379,105570.0,105560.0,0.2034]
[1750779486148,0.92463379,105570.0,105560.0,0.16236]
[1750779486367,0.96762864,105570.0,105560.0,0.16236]
[1750779486579,0.96762864,105570.0,105560.0,0.16232]
[1750779487631,0.63768727,105570.0,105560.0,0.16032]
[1750779487846,0.63968727,105570.0,105560.0,0.16432]
[1750779488029,0.63668727,105570.0,105560.0,0.16432]
[1750779488414,0.63768727,105570.0,105560.0,0.16632]
[1750779489743,0.96662864,105570.0,105560.0,0.0074]
[1750779489901,0.96662864,105570.0,105560.0,0.16636]
[1750779490544,0.96662864,105570.0,105560.0,0.0074]
[1750779490740,0.96662864,105570.0,105560.0,0.16628]
[1750779491329,0.96662864,105570.0,105560.0,0.0074]
[1750779494378,0.63768727,105570.0,105560.0,0.0074]
[1750779496436,1.0621305,105570.0,105560.0,0.0074]
[1750779499651,0.05987006,105570.0,105560.0,0.96921318]
[1750779499874,0.24931844,105570.0,105560.0,0.93616026]
[1750779500076,0.05039831,105570.0,105560.0,0.96457866]
[1750779500298,0.05039831,105570.0,105560.0,0.62628464]
[1750779500299,0.43399831,105570.0,105560.0,0.62628464]
[1750779500505,0.62344606,105570.0,105560.0,0.62628464]
[1750779500709,0.63291844,105570.0,105560.0,0.62628482]
[1750779500965,0.63291844,105570.0,105560.0,0.60733889]
[1750779501170,0.63291844,105570.0,105560.0,0.61681199]
[1750779501806,0.63291844,105570.0,105560.0,0.62628491]
[1750779502038,0.41229777,105570.0,105560.0,0.6452303]
[1750779502266,0.39987006,105570.0,105560.0,0.97417167]
[1750779502468,0.39039777,105570.0,105560.0,0.97417167]
[1750779502668,0.58931772,105570.0,105560.0,0.42528491]
[1750779502897,0.58931772,105570.0,105560.0,0.62628491]
[1750779503841,0.57984597,105570.0,105560.0,0.62628491]
[1750779504060,0.57984597,105570.0,105560.0,0.42628491]
[1750779504267,0.58931835,105570.0,105560.0,0.42528491]
[1750779504472,0.58931835,105570.0,105560.0,0.41581199]
[1750779504697,0.60334633,105570.0,105560.0,0.40728]
[1750779504908,0.62474633,105570.0,105560.0,0.40728]
[1750779505106,0.62474633,105570.0,105560.0,0.5967457]
[1750779505518,0.62474633,105570.0,105560.0,0.60621898]
[1750779505926,0.62474633,105570.0,105560.0,0.40533898]
[1750779506130,0.61527413,105570.0,105560.0,0.60621898]
[1750779506338,0.60580175,105570.0,105560.0,0.5967457]
[1750779506542,0.60580175,105570.0,105560.0,0.60621898]
[1750779506756,0.60580175,105570.0,105560.0,0.40728]
[1750779507585,0.93474312,105570.0,105560.0,0.0064]
[1750779507808,0.90684312,105570.0,105560.0,0.20724]
[1750779508241,0.57790175,105570.0,105560.0,0.20724]
[1750779508664,0.57790175,105570.0,105560.0,0.0064]
[1750779508873,0.57790175,105570.0,105560.0,0.2072]
[1750779509098,0.57790175,105570.0,105560.0,0.0064]
[1750779509326,0.90684312,105570.0,105560.0,0.0064]
[1750779509589,0.92138397,105570.0,105560.0,0.2072]
[1750779510021,0.92138397,105570.0,105560.0,0.0064]
[1750779510022,1.37018486,105570.0,105560.0,0.0064]
[1750779510232,1.04618602,105570.0,105560.0,0.0064]
[1750779510453,0.71724465,105570.0,105560.0,0.0064]
[1750779510667,0.60720201,105570.0,105560.0,0.0064]
[1750779510897,0.57790175,105570.0,105560.0,0.0064]
[1750779513253,0.90684312,105570.0,105560.0,0.0064]
[1750779514129,0.91349,105570.0,105560.0,0.0064]
[1750779514774,0.93617703,105570.0,105560.0,0.0064]
[1750779515187,1.04621974,105570.0,105560.0,0.0064]
[1750779515630,1.06395855,105570.0,105560.0,0.0064]
[1750779515866,1.38625304,105570.0,105560.0,0.0064]
[1750779516074,1.06396344,105570.0,105560.0,0.0064]
[1750779517418,1.06396344,105570.0,105560.0,0.0064]
[1750779519327,1.06395934,105570.0,105560.0,0.0064]
[1750779522471,1.06395004,105570.0,105560.0,0.0064]
[1750779524965,1.0639492,105570.0,105560.0,0.0064]
[1750779525399,1.06394695,105570.0,105560.0,0.0064]
[1750779526029,1.06394728,105570.0,105560.0,0.0064]
[1750779527486,1.06394385,105570.0,105560.0,0.0064]
[1750779527907,1.06394248,105570.0,105560.0,0.0064]
[1750779528326,1.04621898,105570.0,105560.0,0.0064]
[1750779528537,1.06394197,105570.0,105560.0,0.0064]
[1750779528780,0.57768872,105570.0,105560.0,0.0064]
[1750779529217,0.89998397,105570.0,105560.0,0.0064]
[1750779529424,0.92912991,105570.0,105560.0,0.0064]
[1750779530743,0.92248397,105570.0,105560.0,0.0064]
[1750779532026,0.94517677,105570.0,105560.0,0.0064]
[1750779533956,1.04067863,105570.0,105560.0,0.0064]
[1750779534600,1.3469272,105570.0,105560.0,0.0064]
[1750779535044,1.01798583,105570.0,105560.0,0.0064]
[1750779535477,1.04068909,105570.0,105560.0,0.0064]
[1750779535896,1.54577389,105570.0,105560.0,0.0064]
[1750779536745,1.55464791,105570.0,105560.0,0.0064]
[1750779536881,1.56130327,105570.0,105560.0,0.0064]
[1750779537088,1.54355984,105570.0,105560.0,0.0064]
[1750779537291,1.5613068,105570.0,105560.0,0.0064]
[1750779537500,1.61528355,105570.0,105560.0,0.0064]
[1750779537698,1.67752667,105570.0,105560.0,0.0064]
[1750779537933,1.6991476,105570.0,105560.0,0.0064]
[1750779538102,1.75590575,105570.0,105560.0,0.0064]
[1750779538312,1.71806698,105570.0,105560.0,0.0064]
[1750779538722,1.71606698,105570.0,105560.0,0.0024]
[1750779538920,1.71806698,105570.0,105560.0,0.0054]
[1750779539137,1.71805233,105570.0,105560.0,0.0054]
[1750779539644,1.75586349,105570.0,105560.0,0.0054]
[1750779539843,0.69877965,105560.0,105550.0,0.0004]
[1750779540060,1.35668124,105550.0,105540.0,0.0004]
[1750779540277,1.72348245,105550.0,105540.0,0.0004]
[1750779540548,1.75006401,105550.0,105540.0,0.0004]
[1750779540769,1.83482052,105550.0,105540.0,0.0004]
[1750779540985,1.83482052,105550.0,105530.0,0.0004]
[1750779540986,0.31351736,105540.0,105530.0,0.0004]
[1750779541197,2.06893729,105540.0,105530.0,0.0004]
[1750779541383,1.74004172,105540.0,105530.0,0.0004]
[1750779541626,1.77780204,105540.0,105530.0,0.0004]
[1750779541847,0.6982362,105530.0,105520.0,0.0004]
[1750779542075,0.6982362,105530.0,105510.0,0.0004]
[1750779542076,0.69825506,105520.0,105510.0,0.0004]
[1750779542288,0.58589079,105490.0,105480.0,0.0004]
[1750779542530,1.16913402,105490.0,105480.0,0.0004]
[1750779542798,1.21931402,105490.0,105480.0,0.0004]
[1750779543035,1.25252597,105490.0,105480.0,0.0004]
[1750779543803,1.25252597,105490.0,105480.0,0.00085997]
[1750779544065,1.25352597,105490.0,105480.0,0.00085997]
[1750779544294,1.2909311,105490.0,105480.0,0.00085997]
[1750779544506,0.96198973,105490.0,105480.0,0.00085997]
[1750779544731,1.2909311,105490.0,105480.0,0.00085997]
[1750779544980,1.10380084,105490.0,105480.0,0.00085997]
[1750779545219,0.57802994,105490.0,105480.0,0.00085997]
[1750779545434,0.01995851,105490.0,105480.0,0.58487123]
[1750779545656,0.01995779,105490.0,105480.0,0.88985293]
[1750779545933,0.01047885,105490.0,105480.0,0.93209293]
[1750779546173,0.01995779,105490.0,105480.0,0.93209293]
[1750779546382,0.031437,105490.0,105480.0,0.93209293]
[1750779546602,0.23698811,105490.0,105480.0,0.59367172]
[1750779546816,0.03143763,105490.0,105480.0,0.93209293]
[1750779547226,0.03043763,105490.0,105480.0,1.09097293]
[1750779547473,0.02095824,105490.0,105480.0,1.09097293]
[1750779547699,0.02195779,105490.0,105480.0,1.09097293]
[1750779547910,0.04091648,105490.0,105480.0,1.09105293]
[1750779548120,0.04091648,105490.0,105480.0,0.89105293]
[1750779548339,0.04091648,105490.0,105480.0,0.56211156]
[1750779548563,0.04091639,105490.0,105480.0,0.56211156]
[1750779548781,0.04091639,105490.0,105480.0,0.30847123]
[1750779548782,0.21155003,105490.0,105480.0,0.30847123]
[1750779549001,0.21155003,105490.0,105480.0,0.32002183]
[1750779549245,0.03143817,105490.0,105480.0,0.52859181]
[1750779549458,0.2210296,105490.0,105480.0,0.51911161]
[1750779549685,0.2210296,105490.0,105480.0,0.34352183]
[1750779549874,0.21155039,105490.0,105480.0,0.53313123]
[1750779550114,0.21155039,105490.0,105480.0,0.5426117]
[1750779550355,0.21155039,105490.0,105480.0,0.56157228]
[1750779550565,0.21155039,105490.0,105480.0,0.55209208]
[1750779550789,0.21155039,105490.0,105480.0,0.34348183]
[1750779551036,0.202071,105490.0,105480.0,0.31998183]
[1750779551692,1.05670812,105490.0,105480.0,0.00085997]
[1750779551913,1.07800812,105490.0,105480.0,0.00085997]
[1750779552581,1.09254897,105490.0,105480.0,0.00085997]
[1750779552800,1.08954897,105490.0,105480.0,0.00085997]
[1750779553026,1.08954897,105490.0,105480.0,0.00585997]
[1750779553027,1.09354897,105490.0,105480.0,0.00585997]
[1750779553501,1.11714897,105490.0,105480.0,0.00585997]
[1750779554834,1.21265083,105490.0,105480.0,0.00585997]
[1750779555276,1.21924583,105490.0,105480.0,0.00585997]
[1750779555921,1.37832583,105490.0,105480.0,0.00585997]
[1750779556353,1.3783206,105490.0,105480.0,0.00585997]
[1750779557868,0.86368348,105490.0,105480.0,0.00585997]
[1750779558083,1.3783206,105490.0,105480.0,0.00585997]
[1750779558512,1.4132144,105490.0,105480.0,0.00085997]
[1750779558740,1.3743206,105490.0,105480.0,0.00085997]
[1750779558959,1.3978249,105490.0,105480.0,0.00485997]
[1750779559180,1.3998249,105490.0,105480.0,0.00485997]
[1750779559430,1.39982422,105490.0,105480.0,0.00485997]
[1750779560536,0.7261071,105490.0,105480.0,0.00485997]
[1750779560756,1.39974422,105490.0,105480.0,0.00485997]
[1750779560977,1.39774422,105490.0,105480.0,0.00485997]
[1750779561409,1.39974422,105490.0,105480.0,0.00485997]
[1750779561628,1.39974422,105490.0,105480.0,0.00085997]
[1750779561629,1.39674422,105490.0,105480.0,0.00085997]
[1750779561855,1.39874422,105490.0,105480.0,0.00085997]
[1750779562079,1.39974422,105490.0,105480.0,0.00285997]
[1750779562536,1.39874422,105490.0,105480.0,0.00085997]
[1750779562755,1.39974422,105490.0,105480.0,0.00385997]
[1750779563676,1.51161549,105490.0,105480.0,0.00385997]
[1750779564780,1.39974422,105490.0,105480.0,0.00385997]
[1750779565001,1.39315445,105490.0,105480.0,0.00385997]
[1750779565219,1.39974671,105490.0,105480.0,0.00385997]
[1750779565462,1.42787624,105490.0,105480.0,0.00385997]
[1750779565670,1.46562239,105490.0,105480.0,0.00385997]
[1750779565885,1.50184453,105490.0,105480.0,0.00385997]
[1750779566108,1.46562239,105490.0,105480.0,0.00385997]
[1750779566334,1.57888124,105490.0,105480.0,0.00385997]
[1750779566783,1.60612287,105490.0,105480.0,0.00385997]
[1750779567026,1.75233697,105490.0,105480.0,0.00385997]
[1750779567250,1.71459082,105490.0,105480.0,0.00385997]
[1750779567701,1.71159082,105490.0,105480.0,0.00085997]
[1750779567925,1.71165442,105490.0,105480.0,0.00085997]
[1750779568142,1.80912437,105490.0,105480.0,0.00185997]
[1750779568356,1.71165442,105490.0,105480.0,0.00185997]
[1750779568573,1.81339442,105490.0,105480.0,0.00085997]
[1750779568791,1.73258314,105490.0,105480.0,0.00085997]
[1750779569008,1.73258314,105490.0,105480.0,0.00185997]
[1750779569221,0.64923054,105480.0,105470.0,0.0004]
[1750779569432,1.36259982,105480.0,105470.0,0.00053013]
[1750779569644,1.50365238,105480.0,105470.0,0.00053013]
[1750779569853,1.52655238,105480.0,105470.0,0.00053013]
[1750779570727,1.50891568,105480.0,105470.0,0.00053013]
[1750779570942,1.52858011,105480.0,105470.0,0.00053013]
[1750779571162,1.52958016,105480.0,105470.0,0.00153013]
[1750779571375,1.52958014,105480.0,105470.0,0.00153013]
[1750779571591,1.51192309,105480.0,105470.0,0.00153013]
[1750779572464,1.60675829,105480.0,105470.0,0.00153013]
[1750779572686,1.65675829,105480.0,105470.0,0.00153013]
[1750779573332,1.65675829,105480.0,105440.0,0.0229]
[1750779573333,0.54862903,105450.0,105440.0,0.02243013]
[1750779573540,0.87836519,105450.0,105440.0,0.04426805]
[1750779573749,0.88498643,105450.0,105440.0,0.04426805]
[1750779574673,0.88598643,105450.0,105440.0,0.04526805]
[1750779575107,0.91802532,105450.0,105440.0,0.04526805]
[1750779575387,1.0001614,105450.0,105440.0,0.04526805]
[1750779575655,0.99371496,105450.0,105440.0,0.04526805]
[1750779575930,0.21925027,105450.0,105440.0,0.23494938]
[1750779576132,0.22873343,105450.0,105440.0,0.81680951]
[1750779576362,0.22873343,105450.0,105440.0,0.82629339]
[1750779576582,0.21925003,105450.0,105440.0,0.49655723]
[1750779576800,0.21925003,105450.0,105440.0,0.48707335]
[1750779577023,0.20976705,105450.0,105440.0,0.48707344]
[1750779577242,0.23821563,105450.0,105440.0,0.50604084]
[1750779577454,0.23821563,105450.0,105440.0,0.49655723]
[1750779577912,0.23821563,105450.0,105440.0,0.50604093]
[1750779578633,0.23821563,105450.0,105440.0,0.51552454]
[1750779578835,0.04855619,105450.0,105440.0,0.95024599]
[1750779579274,0.04855619,105450.0,105440.0,0.62050983]
[1750779579489,0.23822089,105450.0,105440.0,0.6110264]
[1750779579918,0.04193075,105450.0,105440.0,0.6110264]
[1750779580133,0.24771249,105450.0,105440.0,0.60154279]
[1750779580347,0.22874761,105450.0,105440.0,0.59205909]
[1750779580538,0.02960111,105450.0,105440.0,0.61102631]
[1750779580785,0.22874761,105450.0,105440.0,0.59205918]
[1750779581031,0.02960048,105450.0,105440.0,0.6205101]
[1750779581242,0.02011777,105450.0,105440.0,0.4205101]
[1750779581470,0.02011777,105450.0,105440.0,0.6205101]
[1750779581910,0.02960128,105450.0,105440.0,0.7794301]
[1750779582125,0.02011857,105450.0,105440.0,0.7794301]
[1750779582363,0.03908345,105450.0,105440.0,0.76994667]
[1750779582553,0.04856652,105450.0,105440.0,0.77943028]
[1750779582807,0.04856652,105450.0,105440.0,0.77943019]
[1750779582993,0.04856652,105450.0,105440.0,0.76994667]
[1750779583206,0.04856652,105450.0,105440.0,0.77942956]
[1750779583618,0.02960056,105450.0,105440.0,0.77942956]
[1750779583843,0.02011785,105450.0,105440.0,0.77942956]
[1750779584257,0.02960047,105450.0,105440.0,0.77942956]
[1750779584461,0.04856616,105450.0,105440.0,0.77942956]
[1750779584675,0.05804923,105450.0,105440.0,0.76958613]
[1750779584886,0.04856616,105450.0,105440.0,0.57786956]
[1750779585097,0.04856616,105450.0,105440.0,0.77898956]
[1750779585304,0.04856987,105450.0,105440.0,0.77898956]
[1750779585514,0.05805294,105450.0,105440.0,0.77898956]
[1750779585725,0.24771628,105450.0,105440.0,0.77898956]
[1750779585928,0.23823429,105450.0,105440.0,0.75053891]
[1750779586182,0.22875113,105450.0,105440.0,0.76002261]
[1750779586433,0.23823429,105450.0,105440.0,0.77898974]
[1750779586635,0.23823456,105450.0,105440.0,0.77898974]
[1750779586841,0.04857122,105450.0,105440.0,0.77898929]
[1750779587044,0.23823456,105450.0,105440.0,0.77898929]
[1750779587257,0.23823456,105450.0,105440.0,0.57898929]
[1750779587474,0.03908806,105450.0,105440.0,0.57898929]
[1750779587699,0.0390876,105450.0,105440.0,0.57898929]
[1750779587904,0.02960453,105450.0,105440.0,0.77898929]
[1750779588115,0.02012119,105450.0,105440.0,1.10872545]
[1750779588344,0.04856896,105450.0,105440.0,1.10872545]
[1750779588544,0.04856792,105450.0,105440.0,1.10872545]
[1750779588980,0.04193003,105450.0,105440.0,1.10872545]
[1750779589185,0.05805085,105450.0,105440.0,1.10872545]
[1750779589385,0.05405085,105450.0,105440.0,1.10772545]
[1750779589614,0.24471419,105450.0,105440.0,1.10772545]
[1750779589812,0.23523238,105450.0,105440.0,1.0887585]
[1750779590055,0.23523238,105450.0,105440.0,1.09824202]
[1750779590254,0.24471545,105450.0,105440.0,1.10772545]
[1750779590472,0.05505211,105450.0,105440.0,1.10772545]
[1750779590831,0.06105211,105450.0,105440.0,1.10872545]
[1750779591035,0.01363793,105450.0,105440.0,1.10872545]
[1750779591242,0.007,105450.0,105440.0,1.43846161]
[1750779591439,0.007,105450.0,105440.0,1.58846161]
[1750779591674,0.007,105450.0,105440.0,1.25872545]
[1750779593302,0.007,105450.0,105440.0,1.58846161]
[1750779593512,0.00029115,105450.0,105440.0,1.50188246]
[1750779593720,0.00029115,105450.0,105440.0,1.70308246]
[1750779594393,0.46337053,105480.0,105470.0,0.58907056]
[1750779594600,0.47000264,105480.0,105470.0,0.89525324]
[1750779594808,0.46337044,105480.0,105470.0,0.89525324]
[1750779595014,0.45389006,105480.0,105470.0,0.92563397]
[1750779595221,0.44440986,105480.0,105470.0,0.92563397]
[1750779595425,0.43492975,105480.0,105470.0,0.92563397]
[1750779595632,0.43592975,105480.0,105470.0,0.92963397]
[1750779596054,0.43692975,105480.0,105470.0,0.93563397]
[1750779596262,0.0779698,105480.0,105470.0,1.11537013]
[1750779596471,0.09692975,105480.0,105470.0,1.11537013]
[1750779596681,0.002,105480.0,105470.0,1.11537013]
[1750779596885,0.01147966,105480.0,105470.0,1.11537013]
[1750779597295,0.002,105480.0,105470.0,1.11537013]
[1750779597925,0.001,105480.0,105470.0,1.11137013]
[1750779598332,0.01047975,105480.0,105470.0,1.11137013]
[1750779598509,0.01447975,105480.0,105470.0,1.11237013]
[1750779598912,0.005,105480.0,105470.0,1.11237013]
[1750779599331,0.01447984,105480.0,105470.0,1.11237013]
[1750779599535,0.02395977,105480.0,105470.0,1.10637013]
[1750779599739,0.02295977,105480.0,105470.0,1.10637013]
[1750779599955,0.24152948,105480.0,105470.0,0.31850186]
[1750779600189,0.22256971,105480.0,105470.0,0.49854186]
[1750779600394,0.22256971,105480.0,105470.0,0.69765042]
[1750779600800,0.22256971,105480.0,105470.0,0.49866186]
[1750779601037,0.24496971,105480.0,105470.0,0.49866186]
[1750779601433,0.24496971,105480.0,105470.0,0.68828924]
[1750779601705,0.24496971,105480.0,105470.0,0.49866186]
[1750779602126,0.24496971,105480.0,105470.0,0.40316]
[1750779603152,0.24496971,105480.0,105470.0,0.22212263]
[1750779603360,0.24496971,105480.0,105470.0,0.41175001]
[1750779603537,0.24496971,105480.0,105470.0,0.42123119]
[1750779603752,0.05536031,105480.0,105470.0,0.4212311]
[1750779603958,0.26392984,105480.0,105470.0,0.4213111]
[1750779604164,0.26392984,105480.0,105470.0,0.41183001]
[1750779604361,0.25445009,105480.0,105470.0,0.41183001]
[1750779604591,0.25445009,105480.0,105470.0,0.42131119]
[1750779604801,0.25445009,105480.0,105470.0,0.20110874]
[1750779605011,0.24497007,105480.0,105470.0,0.40218865]
[1750779605447,0.014,105480.0,105470.0,0.8892884]
[1750779605656,0.014,105480.0,105470.0,1.1892884]
[1750779607580,0.02347975,105480.0,105470.0,0.9882084]
[1750779607795,0.02347975,105480.0,105470.0,0.55959224]
[1750779607796,0.05191999,105480.0,105470.0,0.55959224]
[1750779607998,0.2320491,105480.0,105470.0,0.32719151]
[1750779608205,0.24152948,105480.0,105470.0,0.5166926]
[1750779608412,0.24152948,105480.0,105470.0,0.52617351]
[1750779608837,0.24152948,105480.0,105470.0,0.4978106]
[1750779609091,0.25354973,105480.0,105470.0,0.50729187]
[1750779609296,0.25354973,105480.0,105470.0,0.31557296]
[1750779609515,0.25354973,105480.0,105470.0,0.50729178]
[1750779609716,0.25354973,105480.0,105470.0,0.51677287]
[1750779609940,0.25354973,105480.0,105470.0,0.2966106]
[1750779610167,0.58552594,105480.0,105470.0,0.20324]
[1750779610375,0.25578978,105480.0,105470.0,0.20324]
[1750779610806,0.91604556,105480.0,105470.0,0.0444]
[1750779611015,0.91604556,105480.0,105470.0,0.20336]
[1750779611858,0.91604556,105480.0,105470.0,0.002]
[1750779612061,0.91604556,105480.0,105470.0,0.2034]
[1750779612606,0.91604556,105480.0,105470.0,0.002]
[1750779612842,0.91604556,105480.0,105470.0,0.2034]
[1750779614687,0.93058641,105480.0,105470.0,0.002]
[1750779615626,0.92058641,105480.0,105470.0,0.001]
[1750779616067,0.92158641,105480.0,105470.0,0.004]
[1750779616997,0.91758641,105480.0,105470.0,0.003]
[1750779617490,0.91858641,105480.0,105470.0,0.008]
[1750779620536,1.24832257,105480.0,105470.0,0.008]
[1750779620744,0.91858641,105480.0,105470.0,0.008]
[1750779621193,0.92522074,105480.0,105470.0,0.008]
[1750779621618,0.91858641,105480.0,105470.0,0.008]
[1750779621851,0.92522005,105480.0,105470.0,0.008]
[1750779622613,0.92521917,105480.0,105470.0,0.008]
[1750779623686,0.91858641,105480.0,105470.0,0.008]
[1750779624167,1.24832257,105480.0,105470.0,0.008]
[1750779625008,1.35045392,105480.0,105470.0,0.008]
[1750779626488,1.3789342,105480.0,105470.0,0.008]
[1750779626684,1.37893295,105480.0,105470.0,0.008]
[1750779633633,1.37893241,105480.0,105470.0,0.008]
[1750779636718,0.91132756,105480.0,105470.0,0.008]
[1750779637211,0.5600914,105480.0,105470.0,0.0309]
[1750779637626,0.5316094,105480.0,105470.0,0.0309]
[1750779637855,0.86134556,105480.0,105470.0,0.0309]
[1750779639748,0.86134556,105480.0,105470.0,0.008]
[1750779641739,0.88274556,105480.0,105470.0,0.008]
[1750779641940,0.90584556,105480.0,105470.0,0.008]
[1750779642539,0.92038641,105480.0,105470.0,0.008]
[1750779642727,1.25676355,105480.0,105470.0,0.008]
[1750779643179,0.92702739,105480.0,105470.0,0.008]
[1750779644143,1.25676355,105480.0,105470.0,0.008]
[1750779644399,0.92702739,105480.0,105470.0,0.008]
[1750779645242,0.9270287,105480.0,105470.0,0.008]
[1750779646959,1.25676486,105480.0,105470.0,0.008]
[1750779647162,0.9270287,105480.0,105470.0,0.008]
[1750779647568,0.9555087,105480.0,105470.0,0.008]
[1750779647982,1.28524582,105480.0,105470.0,0.008]
[1750779648579,1.2852458,105480.0,105470.0,0.008]
[1750779648775,0.95550962,105480.0,105470.0,0.008]
[1750779649358,0.95550949,105480.0,105470.0,0.008]
[1750779649755,1.38074751,105480.0,105470.0,0.008]
[1750779650162,1.53930751,105480.0,105470.0,0.008]
[1750779651002,1.20957135,105480.0,105470.0,0.008]
[1750779652434,1.53930751,105480.0,105470.0,0.008]
[1750779652830,1.20957135,105480.0,105470.0,0.008]
[1750779653228,1.20956897,105480.0,105470.0,0.008]
[1750779653820,1.53930513,105480.0,105470.0,0.008]
[1750779654832,1.53930629,105480.0,105470.0,0.008]
[1750779655045,1.56197869,105480.0,105470.0,0.008]
[1750779656095,1.23224253,105480.0,105470.0,0.008]
[1750779656523,1.2322436,105480.0,105470.0,0.008]
[1750779657149,1.23224408,105480.0,105470.0,0.008]
[1750779661391,1.65566882,105480.0,105470.0,0.008]
[1750779661604,2.1799078,105480.0,105470.0,0.008]
[1750779661855,1.85010501,105480.0,105470.0,0.008]
[1750779662125,1.82176987,105480.0,105470.0,0.008]
[1750779662361,1.84910501,105480.0,105470.0,0.003]
[1750779662561,2.30415153,105480.0,105470.0,0.003]
[1750779662772,0.56316988,105450.0,105440.0,0.00013792]
[1750779662983,1.54977987,105450.0,105440.0,0.00013792]
[1750779663406,1.57826887,105450.0,105440.0,0.00013792]
[1750779664263,1.57926887,105450.0,105440.0,0.00613792]
[1750779665098,1.57262546,105450.0,105440.0,0.00613792]
[1750779665323,1.57926177,105450.0,105440.0,0.00613792]
[1750779665533,1.55658937,105450.0,105440.0,0.00613792]
[1750779665751,1.55758937,105450.0,105440.0,0.01113792]
[1750779667489,1.56728908,105450.0,105440.0,0.01113792]
[1750779667907,1.56065277,105450.0,105440.0,0.01113792]
[1750779668738,1.56728025,105450.0,105440.0,0.01113792]
[1750779668951,0.90780908,105450.0,105440.0,0.01113792]
[1750779669160,1.20911661,105450.0,105440.0,0.01113792]
[1750779670060,1.23141661,105450.0,105440.0,0.01113792]
[1750779670722,1.56115277,105450.0,105440.0,0.01113792]
[1750779671597,1.56119277,105450.0,105440.0,0.01113792]
[1750779672480,1.56781751,105450.0,105440.0,0.01113792]
[1750779672698,1.5678165,105450.0,105440.0,0.01113792]
[1750779674401,1.56119277,105450.0,105440.0,0.01113792]
[1750779675505,1.20915661,105450.0,105440.0,0.01113792]
[1750779675719,1.53889277,105450.0,105440.0,0.01113792]
[1750779676201,1.56089277,105450.0,105440.0,0.01113792]
[1750779680757,0.90142045,105450.0,105440.0,0.01113792]
[1750779680999,1.56751597,105450.0,105440.0,0.01113792]
[1750779681220,0.90804424,105450.0,105440.0,0.01113792]
[1750779681502,1.56751671,105450.0,105440.0,0.01113792]
[1750779684754,1.54551671,105450.0,105440.0,0.01113792]
[1750779684991,1.21578055,105450.0,105440.0,0.01113792]
[1750779685252,1.53889277,105450.0,105440.0,0.01113792]
[1750779685644,1.56682171,105450.0,105440.0,0.01113792]
[1750779686508,1.58945633,105450.0,105440.0,0.01113792]
[1750779688013,1.58282739,105450.0,105440.0,0.01113792]
[1750779688439,1.56152739,105450.0,105440.0,0.01113792]
[1750779690429,1.58342739,105450.0,105440.0,0.01113792]
[1750779692452,1.61176409,105450.0,105440.0,0.01113792]
[1750779696787,1.45320409,105450.0,105440.0,0.01113792]
[1750779697017,1.58978409,105450.0,105440.0,0.01113792]
[1750779697836,1.09966852,105450.0,105440.0,0.03413792]
[1750779698048,1.09966852,105450.0,105440.0,0.01113792]
[1750779698049,1.42940468,105450.0,105440.0,0.01113792]
[1750779698257,1.58898409,105450.0,105440.0,0.01113792]
[1750779698482,1.61028409,105450.0,105440.0,0.01113792]
[1750779699864,1.58898409,105450.0,105440.0,0.01113792]
[1750779701137,1.61148409,105450.0,105440.0,0.01113792]
[1750779702043,2.0366902,105450.0,105440.0,0.01113792]
[1750779702297,1.25747838,105440.0,105430.0,0.0004]
[1750779702516,0.64802495,105430.0,105420.0,0.0004]
[1750779702741,0.64802495,105430.0,105400.0,0.00774733]
[1750779702742,0.5930082,105410.0,105400.0,0.00774733]
[1750779702953,0.85476626,105410.0,105400.0,0.00774733]
[1750779703171,1.18450242,105410.0,105400.0,0.0082075]
[1750779703384,1.24235969,105410.0,105400.0,0.0082075]
[1750779704249,1.27170651,105410.0,105400.0,0.0112075]
[1750779704461,1.57309585,105410.0,105400.0,0.0142075]
[1750779704680,1.72741247,105410.0,105400.0,0.0142075]
[1750779704907,0.59338743,105370.0,105360.0,0.00880843]
[1750779705130,1.26428092,105370.0,105360.0,0.00880843]
[1750779705349,1.26428092,105370.0,105350.0,6e-05]
[1750779705350,1.57312492,105360.0,105350.0,6e-05]
[1750779705571,0.6038762,105350.0,105340.0,0.002]
[1750779705781,0.58640758,105330.0,105320.0,0.002]
[1750779705997,1.49986176,105330.0,105320.0,0.002]
[1750779706236,1.54986176,105330.0,105320.0,0.002]
[1750779706454,1.54986176,105330.0,105320.0,0.00204599]
[1750779706715,0.709816,105330.0,105320.0,0.00204599]
[1750779706924,1.53723564,105330.0,105320.0,0.00204599]
[1750779707170,1.02601948,105330.0,105320.0,0.00204599]
[1750779707389,0.70601321,105330.0,105320.0,0.02464599]
[1750779707613,0.53937321,105330.0,105320.0,0.02464599]
[1750779708046,0.36498659,105330.0,105320.0,1.08597848]
[1750779708262,0.56435962,105330.0,105320.0,1.01522401]
[1750779708474,0.55486691,105330.0,105320.0,0.8753853]
[1750779708690,0.55486691,105330.0,105320.0,0.17464599]
[1750779708906,1.07113548,105330.0,105320.0,0.02464599]
[1750779709138,1.08567633,105330.0,105320.0,0.00204599]
[1750779709348,1.18117819,105330.0,105320.0,0.00304599]
[1750779709566,1.34109819,105330.0,105320.0,0.00304599]